bitfinex-derivatives/quotes_BTCF0:USTF0_20240814
["timestamp","ask_amount","ask_price","bid_price","bid_amount"]
[1723632532239,0.3608,61205.0,61204.0,0.20609876]
[1723632532540,0.00124499,61210.0,61209.0,0.08166]
[1723632532842,0.00124499,61210.0,61209.0,0.56688352]
[1723632533152,0.081653,61215.0,61213.0,0.081654]
[1723632533454,0.081653,61215.0,61214.0,0.12442352]
[1723632533639,0.081653,61215.0,61214.0,0.20607752]
[1723632534439,0.081653,61215.0,61214.0,0.081654]
[1723632534634,0.081652,61215.0,61214.0,0.08130418]
[1723632534830,0.081655,61214.0,61208.0,0.00024499]
[1723632535044,0.081655,61214.0,61212.0,0.081655]
[1723632535741,0.081655,61214.0,61213.0,0.081655]
[1723632535945,0.081655,61214.0,61213.0,0.16296341]
[1723632536238,0.081648,61218.0,61216.0,0.08165]
[1723632536435,0.08165,61217.0,61216.0,0.08165]
[1723632536836,0.08165,61217.0,61216.0,0.16295844]
[1723632539043,0.08165,61217.0,61216.0,0.16495844]
[1723632539436,0.08165,61217.0,61216.0,0.08365]
[1723632540345,0.3608,61219.0,61218.0,0.081648]
[1723632541344,0.3608,61219.0,61218.0,0.16294888]
[1723632541541,0.00024499,61221.0,61220.0,0.081646]
[1723632541736,0.00024499,61221.0,61220.0,0.16294308]
[1723632541945,0.3608,61226.0,61225.0,0.081639]
[1723632542249,0.3608,61226.0,61225.0,0.16293608]
[1723632542440,0.3608,61226.0,61225.0,0.65293608]
[1723632542844,0.3608,61226.0,61225.0,0.16293608]
[1723632543049,0.3608,61226.0,61225.0,0.65293608]
[1723632543247,0.3608,61226.0,61225.0,0.16292731]
[1723632543849,0.3698,61226.0,61225.0,0.16292731]
[1723632545047,0.3698,61226.0,61225.0,0.081639]
[1723632546348,0.009,61226.0,61225.0,0.081639]
[1723632546941,0.018,61226.0,61225.0,0.1472302]
[1723632547354,0.018,61226.0,61225.0,0.082639]
[1723632548852,0.018,61226.0,61225.0,0.09086771]
[1723632549052,0.018,61226.0,61225.0,0.13929955]
[1723632549448,0.018,61226.0,61225.0,0.09086771]
[1723632550847,0.018,61226.0,61225.0,0.15545891]
[1723632551349,0.018,61226.0,61225.0,0.09086771]
[1723632551547,0.018,61226.0,61225.0,0.15543607]
[1723632551747,0.018,61226.0,61225.0,0.09086771]
[1723632552550,0.00024499,61232.0,61231.0,0.081631]
[1723632552844,0.3608,61237.0,61236.0,0.081624]
[1723632553045,0.3608,61245.0,61244.0,0.081614]
[1723632553250,0.3608,61252.0,61243.0,0.3608]
[1723632553449,0.0813917,61246.0,61243.0,0.3608]
[1723632553651,0.08129206,61248.0,61244.0,0.0775]
[1723632553860,0.45888687,61252.0,61247.0,0.08161]
[1723632554053,0.45888687,61252.0,61248.0,0.081608]
[1723632554054,0.08129216,61249.0,61248.0,0.081608]
[1723632554255,0.08126101,61249.0,61245.0,0.1556]
[1723632554559,0.08126101,61249.0,61248.0,0.081608]
[1723632554951,0.08126101,61250.0,61249.0,0.081607]
[1723632555351,0.00024499,61251.0,61250.0,0.081606]
[1723632555552,0.02670583,61251.0,61250.0,0.081606]
[1723632555755,0.00024499,61251.0,61250.0,0.081606]
[1723632556160,0.0814692,61251.0,61250.0,0.081606]
[1723632557050,0.00024499,61251.0,61250.0,0.081606]
[1723632557250,0.081462,61251.0,61250.0,0.081606]
[1723632558758,0.081462,61251.0,61250.0,0.082606]
[1723632559465,0.163066,61251.0,61250.0,0.082606]
[1723632559764,0.172066,61251.0,61250.0,0.082606]
[1723632560168,0.090462,61251.0,61250.0,0.082606]
[1723632560866,0.00924499,61251.0,61250.0,0.082606]
[1723632561857,0.25405299,61251.0,61250.0,0.001]
[1723632562064,0.25405299,61251.0,61250.0,0.002]
[1723632562262,0.26105299,61251.0,61250.0,0.002]
[1723632563263,0.26950013,61251.0,61250.0,0.002]
[1723632564057,1.80180013,61251.0,61250.0,0.00151002]
[1723632564260,1.88340413,61251.0,61250.0,0.00151002]
[1723632564462,1.94838635,61251.0,61250.0,0.00151002]
[1723632564869,1.88340413,61251.0,61250.0,0.00151002]
[1723632565571,1.88240413,61251.0,61250.0,0.00051002]
[1723632565960,1.88240413,61251.0,61239.0,0.08162]
[1723632565961,0.08162,61240.0,61239.0,0.08162]
[1723632567470,0.08162,61240.0,61239.0,0.08562]
[1723632567971,0.08162,61240.0,61239.0,0.004]
[1723632568675,0.10808316,61240.0,61239.0,0.004]
[1723632569772,0.10808316,61240.0,61239.0,0.005]
[1723632570359,0.08162,61239.0,61238.0,0.00024499]
[1723632570559,0.10808316,61239.0,61238.0,0.00024499]
[1723632572868,0.18668316,61239.0,61238.0,0.00024499]
[1723632573468,0.10506316,61239.0,61238.0,0.08186699]
[1723632574673,0.02646316,61239.0,61238.0,0.08186699]
[1723632575172,0.02646316,61239.0,61238.0,0.08386699]
[1723632575378,0.02646316,61239.0,61238.0,0.08586699]
[1723632575573,0.09724687,61242.0,61241.0,0.081618]
[1723632575776,0.0264626,61242.0,61241.0,0.081618]
[1723632576173,0.081607,61250.0,61247.0,0.081609]
[1723632576373,0.05798681,61249.0,61248.0,0.081608]
[1723632576683,0.06540676,61251.0,61250.0,0.081606]
[1723632578667,0.00024499,61251.0,61250.0,0.081606]
[1723632578880,0.06541857,61251.0,61250.0,0.081606]
[1723632579179,0.00024499,61251.0,61250.0,0.081606]
[1723632579572,0.01124499,61251.0,61250.0,0.082606]
[1723632580071,0.07642795,61251.0,61250.0,0.082606]
[1723632580272,0.07643744,61251.0,61250.0,0.082606]
[1723632580473,0.08243744,61251.0,61250.0,0.083606]
[1723632582071,0.08243744,61251.0,61250.0,0.082606]
[1723632582072,0.01124499,61251.0,61250.0,0.082606]
[1723632582471,0.09284899,61251.0,61250.0,0.082606]
[1723632582677,0.09884899,61251.0,61250.0,0.083606]
[1723632582875,0.45964899,61251.0,61250.0,0.083606]
[1723632583077,0.45364899,61251.0,61250.0,0.082606]
[1723632583278,0.44264899,61251.0,61250.0,0.082606]
[1723632583675,0.47511013,61251.0,61250.0,0.083606]
[1723632584080,0.48511013,61251.0,61250.0,0.083606]
[1723632584476,0.49411013,61251.0,61250.0,0.083606]
[1723632585077,0.41250613,61251.0,61250.0,0.083606]
[1723632585473,0.41250609,61251.0,61250.0,0.083606]
[1723632586080,0.05170609,61251.0,61250.0,0.083606]
[1723632586583,0.05170609,61251.0,61250.0,0.165906]
[1723632586979,0.12306182,61251.0,61250.0,0.165906]
[1723632587279,0.14952292,61251.0,61250.0,0.165906]
[1723632588180,0.05170609,61251.0,61250.0,0.165906]
[1723632588587,0.12305663,61251.0,61250.0,0.165906]
[1723632588784,0.14951773,61251.0,61250.0,0.165906]
[1723632590081,0.14951703,61251.0,61250.0,0.165906]
[1723632590388,0.05170539,61251.0,61250.0,0.165906]
[1723632591687,0.02524499,61251.0,61250.0,0.165906]
[1723632594685,0.02524499,61251.0,61250.0,1.1857308]
[1723632594882,0.06520133,61254.0,61253.0,0.081602]
[1723632595082,0.3608,61263.0,61254.0,0.0816]
[1723632595083,0.06520133,61255.0,61254.0,0.0816]
[1723632595386,0.06520133,61259.0,61258.0,0.081595]
[1723632595584,0.06520133,61260.0,61259.0,0.363294]
[1723632595790,0.06520133,61261.0,61260.0,0.081592]
[1723632597089,0.081591,61262.0,61259.0,0.3608]
[1723632597288,0.08150166,61263.0,61255.0,0.081598]
[1723632597289,0.081594,61259.0,61255.0,0.081598]
[1723632597482,0.06516955,61257.0,61255.0,0.081598]
[1723632598284,0.06516955,61256.0,61255.0,0.081598]
[1723632599194,0.06516955,61256.0,61255.0,0.082598]
[1723632599381,0.14676755,61256.0,61255.0,0.001]
[1723632599691,0.081598,61256.0,61255.0,0.001]
[1723632600798,0.16309966,61256.0,61255.0,0.001]
[1723632601285,0.16309966,61256.0,61255.0,0.002]
[1723632602282,0.081598,61256.0,61255.0,0.002]
[1723632602884,0.16310466,61256.0,61255.0,0.002]
[1723632603284,0.1080584,61256.0,61255.0,0.002]
[1723632604790,0.081598,61256.0,61255.0,0.002]
[1723632604998,0.163196,61256.0,61255.0,0.002]
[1723632605190,0.163196,61256.0,61248.0,0.0484188]
[1723632605191,0.081607,61249.0,61248.0,0.0484188]
[1723632605384,0.50764759,61249.0,61248.0,0.0484188]
[1723632606192,0.50764759,61249.0,61247.0,0.1300278]
[1723632606397,0.50764759,61249.0,61248.0,0.0484188]
[1723632607302,0.50764759,61249.0,61248.0,0.20594333]
[1723632607303,0.3608,61249.0,61248.0,0.20594333]
[1723632607493,0.26283392,61249.0,61248.0,0.20594333]
[1723632607696,0.00024499,61255.0,61252.0,0.081602]
[1723632607992,0.00024499,61255.0,61248.0,0.12433533]
[1723632607993,0.00024499,61255.0,61253.0,0.20511715]
[1723632608199,0.00024499,61255.0,61252.0,0.08078466]
[1723632608606,0.00024499,61255.0,61254.0,0.0816]
[1723632609016,0.00024499,61255.0,61254.0,0.28671243]
[1723632609210,0.00024499,61255.0,61254.0,0.0816]
[1723632609509,0.081602,61253.0,61251.0,0.44158466]
[1723632609711,0.081602,61253.0,61248.0,0.09694159]
[1723632609712,0.081603,61252.0,61250.0,0.08078466]
[1723632609909,0.08161,61247.0,61245.0,0.08078466]
[1723632610101,0.08161,61247.0,61242.0,0.00024499]
[1723632610102,0.081612,61245.0,61243.0,0.08078466]
[1723632610300,0.081615,61243.0,61242.0,0.00024499]
[1723632612009,0.16323,61243.0,61242.0,0.04872379]
[1723632612316,0.16323,61243.0,61242.0,0.00024499]
[1723632613407,0.16323,61243.0,61242.0,0.00124499]
[1723632613908,0.65307,61243.0,61242.0,0.00124499]
[1723632614103,0.081622,61238.0,61237.0,0.04847928]
[1723632614408,0.163248,61236.0,61235.0,0.00012357]
[1723632615210,0.653168,61236.0,61235.0,0.00012357]
[1723632615715,1.053168,61236.0,61235.0,0.00012357]
[1723632617225,1.053168,61236.0,61235.0,0.00912357]
[1723632617419,0.163264,61230.0,61229.0,0.00024499]
[1723632617723,0.442432,61230.0,61224.0,0.03584883]
[1723632617918,0.081646,61220.0,61213.0,0.06461616]
[1723632618121,0.081658,61211.0,61210.0,0.06461616]
[1723632618421,0.0001361,61211.0,61205.0,0.06461616]
[1723632618917,0.0001361,61211.0,61205.0,0.14628116]
[1723632619319,0.081663,61207.0,61205.0,0.081665]
[1723632619516,0.081664,61206.0,61205.0,0.081665]
[1723632620020,0.081668,61204.0,61202.0,0.42566115]
[1723632620331,0.081668,61204.0,61202.0,0.36104499]
[1723632620521,0.0001361,61211.0,61209.0,0.08166]
[1723632620819,0.0001361,61211.0,61202.0,0.76104499]
[1723632620820,0.0001361,61211.0,61210.0,0.081659]
[1723632621015,0.0001361,61211.0,61210.0,0.442459]
[1723632621621,0.0817941,61211.0,61210.0,0.3608]
[1723632621817,0.0817941,61211.0,61206.0,0.081664]
[1723632622521,0.081659,61210.0,61206.0,0.081664]
[1723632623428,0.0001361,61211.0,61207.0,0.081662]
[1723632624124,0.0011361,61211.0,61210.0,0.014]
[1723632627419,0.0011361,61211.0,61210.0,0.456459]
[1723632627928,0.3608,61220.0,61210.0,1.26492]
[1723632628123,0.3608,61220.0,61210.0,0.3888]
[1723632628322,0.3608,61220.0,61217.0,0.081649]
[1723632628718,0.3608,61220.0,61219.0,0.081647]
[1723632629024,0.3608,61235.0,61218.0,0.3608]
[1723632629225,0.442426,61235.0,61228.0,0.081635]
[1723632629522,0.00024499,61235.0,61233.0,0.081628]
[1723632630327,0.00024499,61235.0,61230.0,0.3608]
[1723632630531,0.00024499,61235.0,61230.0,0.442432]
[1723632630733,0.00024499,61235.0,61230.0,0.3608]
[1723632631030,0.00024499,61235.0,61234.0,0.081627]
[1723632631326,0.08161,61247.0,61231.0,0.77162]
[1723632631528,0.09026822,61251.0,61242.0,0.3608]
[1723632631731,0.36164,61253.0,61242.0,0.3608]
[1723632631933,0.081599,61255.0,61243.0,0.4314]
[1723632632235,0.59324,61263.0,61243.0,0.4314]
[1723632632236,0.081593,61260.0,61254.0,0.3608]
[1723632632425,0.081596,61257.0,61254.0,0.3608]
[1723632632624,0.00024499,61255.0,61254.0,0.3608]
[1723632634127,0.00024499,61255.0,61250.0,0.081605]
[1723632635232,0.00124499,61255.0,61254.0,0.001]
[1723632636230,0.00124499,61255.0,61254.0,0.0826]
[1723632637437,0.01824499,61255.0,61254.0,0.0836]
[1723632638033,0.01924499,61255.0,61254.0,0.0836]
[1723632638242,0.01924499,61255.0,61254.0,0.002]
[1723632638931,0.01924499,61255.0,61254.0,0.003]
[1723632639535,0.10084399,61255.0,61254.0,0.003]
[1723632642439,0.38254399,61255.0,61254.0,0.003]
[1723632643037,0.01924499,61255.0,61254.0,0.003]
[1723632645335,0.10084399,61255.0,61254.0,0.003]
[1723632646828,0.01924499,61255.0,61254.0,0.0846]
[1723632648634,0.01924499,61255.0,61254.0,0.4454]
[1723632648831,0.5128,61263.0,61260.0,0.081591]
[1723632649135,0.5128,61263.0,61261.0,0.081591]
[1723632649136,0.4369,61263.0,61261.0,0.081591]
[1723632651048,0.4369,61263.0,61257.0,0.081595]
[1723632651242,0.08159,61262.0,61257.0,0.081595]
[1723632651435,0.08159,61262.0,61260.0,0.001]
[1723632651845,0.081591,61261.0,61260.0,0.001]
[1723632652536,0.081591,61261.0,61257.0,0.081595]
[1723632653136,0.081591,61261.0,61256.0,0.00024499]
[1723632653529,0.081591,61261.0,61260.0,0.001]
[1723632656642,0.163182,61261.0,61260.0,0.001]
[1723632657749,0.17157252,61261.0,61260.0,0.001]
[1723632658847,0.17157252,61261.0,61260.0,0.002]
[1723632659247,0.17157252,61261.0,61260.0,0.001]
[1723632660343,0.17157252,61261.0,61260.0,0.002]
[1723632660744,0.25316352,61261.0,61260.0,0.00061891]
[1723632660942,0.62396352,61261.0,61260.0,0.00061891]
[1723632661244,0.54237252,61261.0,61260.0,0.00061891]
[1723632665156,0.54237252,61261.0,61256.0,0.00024499]
[1723632665157,0.081596,61257.0,61256.0,0.00024499]
[1723632665447,0.887288,61257.0,61256.0,0.00024499]
[1723632665644,1.40350505,61257.0,61256.0,0.00024499]
[1723632665847,1.48160505,61257.0,61256.0,0.00024499]
[1723632666155,1.88160505,61257.0,61256.0,0.00024499]
[1723632666354,1.855148,61257.0,61256.0,0.00024499]
[1723632666553,1.40001053,61257.0,61256.0,0.00024499]
[1723632666757,1.373552,61257.0,61256.0,0.00024499]
[1723632667054,0.5856817,61257.0,61256.0,0.00124499]
[1723632667350,0.081596,61257.0,61256.0,0.00124499]
[1723632667749,0.081596,61257.0,61256.0,0.08284299]
[1723632668445,0.79601622,61261.0,61258.0,0.081594]
[1723632668653,0.081593,61260.0,61259.0,0.081593]
[1723632669950,0.081593,61260.0,61256.0,0.00224499]
[1723632669951,0.73083052,61261.0,61256.0,0.06686115]
[1723632670154,0.72999052,61261.0,61256.0,0.00224499]
[1723632671151,0.081596,61257.0,61256.0,0.08284199]
[1723632671355,0.081596,61257.0,61256.0,0.08184199]
[1723632671747,0.081596,61257.0,61256.0,0.08284199]
[1723632673153,0.73195053,61261.0,61256.0,0.08284199]
[1723632673350,0.081592,61260.0,61257.0,0.081595]
[1723632673552,0.081592,61260.0,61258.0,0.06461616]
[1723632673957,0.081592,61260.0,61257.0,0.081595]
[1723632675153,0.06516815,61258.0,61257.0,0.081595]
[1723632675358,0.082592,61260.0,61257.0,0.081595]
[1723632676052,0.081595,61258.0,61256.0,0.00124499]
[1723632676247,0.06516697,61257.0,61256.0,0.00024499]
[1723632677150,0.14676297,61257.0,61256.0,0.00024499]
[1723632678061,0.14676297,61257.0,61256.0,0.00124499]
[1723632678062,0.081596,61257.0,61256.0,0.00124499]
[1723632678649,0.081596,61257.0,61256.0,0.00224499]
[1723632679252,0.082596,61257.0,61256.0,0.00224499]
[1723632680450,0.164192,61257.0,61256.0,0.00224499]
[1723632681057,0.082596,61257.0,61256.0,0.06686115]
[1723632681259,0.082596,61257.0,61256.0,0.00224499]
[1723632682866,0.082596,61257.0,61256.0,0.08714499]
[1723632687560,0.001,61257.0,61256.0,1.10055349]
[1723632687764,0.001,61257.0,61256.0,1.22487833]
[1723632688572,0.001,61257.0,61256.0,0.73511833]
[1723632688771,0.001,61257.0,61256.0,0.65386783]
[1723632688957,0.001,61257.0,61256.0,0.74357912]
[1723632691668,0.08159,61262.0,61258.0,0.081595]
[1723632691866,0.08159,61262.0,61257.0,0.08077802]
[1723632691867,0.081595,61258.0,61257.0,0.08077802]
[1723632692068,0.081596,61257.0,61256.0,0.00360499]
[1723632692272,0.081596,61257.0,61256.0,0.00224499]
[1723632692465,0.081596,61257.0,61256.0,0.06688741]
[1723632693066,0.081596,61257.0,61256.0,0.06588741]
[1723632693466,0.081593,61260.0,61257.0,0.081596]
[1723632693674,0.081593,61260.0,61258.0,0.06464198]
[1723632693877,0.3618,61262.0,61258.0,0.06464198]
[1723632694078,0.442391,61262.0,61260.0,0.081592]
[1723632694577,0.442391,61262.0,61260.0,0.14623398]
[1723632694778,0.442391,61262.0,61261.0,0.06464198]
[1723632696071,0.38724961,61262.0,61256.0,0.00224499]
[1723632696379,0.3608,61262.0,61261.0,0.081591]
[1723632696578,0.38724949,61262.0,61261.0,0.081591]
[1723632696765,0.3608,61262.0,61261.0,0.081591]
[1723632697275,0.38724943,61262.0,61261.0,0.081591]
[1723632697476,0.3608,61262.0,61261.0,0.081591]
[1723632697778,0.44229613,61262.0,61261.0,0.081591]
[1723632698174,0.3608,61262.0,61261.0,0.081591]
[1723632699480,0.3608,61262.0,61261.0,0.09013899]
[1723632699676,0.38724926,61262.0,61261.0,0.09013899]
[1723632699872,0.3608,61262.0,61261.0,0.09013899]
[1723632700074,0.3608,61262.0,61261.0,0.09113899]
[1723632700679,0.44239,61262.0,61261.0,0.082591]
[1723632700879,0.46883926,61262.0,61261.0,0.082591]
[1723632701279,0.46883926,61262.0,61261.0,0.083591]
[1723632702481,0.47883926,61262.0,61261.0,0.083591]
[1723632703967,0.45239,61262.0,61261.0,0.083591]
[1723632704383,0.45239,61262.0,61261.0,0.002]
[1723632705685,0.45239,61262.0,61261.0,0.083591]
[1723632706484,0.09159,61262.0,61261.0,0.083591]
[1723632710790,0.09159,61262.0,61261.0,0.002]
[1723632710994,0.09159,61262.0,61261.0,0.083591]
[1723632714792,0.09159,61262.0,61261.0,0.002]
[1723632716996,0.00024499,61268.0,61261.0,0.77537757]
[1723632717297,0.00024499,61268.0,61265.0,0.16243749]
[1723632717496,0.00024499,61268.0,61265.0,0.081585]
[1723632717991,0.00024499,61268.0,61264.0,0.08085249]
[1723632718291,0.00024499,61268.0,61261.0,0.08359]
[1723632718292,0.163178,61263.0,61261.0,0.0657084]
[1723632718489,1.37695,61262.0,61261.0,0.001]
[1723632718686,0.163194,61257.0,61256.0,0.00024499]
[1723632718889,0.523994,61257.0,61256.0,0.00024499]
[1723632719190,0.605591,61257.0,61256.0,0.00024499]
[1723632719392,0.605591,61257.0,61249.0,0.0647084]
[1723632719393,0.163212,61250.0,61249.0,0.0647084]
[1723632719588,0.081607,61249.0,61245.0,0.0647084]
[1723632719792,0.081613,61245.0,61244.0,0.0647084]
[1723632720291,0.163226,61245.0,61244.0,0.0647084]
[1723632720500,0.081617,61242.0,61241.0,0.06470154]
[1723632720690,0.081618,61241.0,61240.0,0.06470154]
[1723632720893,0.081619,61240.0,61239.0,0.06470154]
[1723632721199,0.163242,61239.0,61238.0,0.00024499]
[1723632721405,0.653122,61239.0,61238.0,0.00024499]
[1723632721590,0.081637,61227.0,61226.0,0.06470154]
[1723632721792,0.3608,61227.0,61222.0,0.06487643]
[1723632722087,0.081642,61223.0,61222.0,0.00017489]
[1723632723993,0.081642,61223.0,61222.0,0.00717489]
[1723632724393,0.363342,61223.0,61222.0,0.02014804]
[1723632725201,0.363342,61223.0,61222.0,0.03014804]
[1723632725403,0.37211118,61223.0,61222.0,0.03014804]
[1723632728495,0.45375318,61223.0,61222.0,0.03014804]
[1723632729095,1.34375318,61223.0,61222.0,0.03014804]
[1723632729296,0.94375318,61223.0,61222.0,0.03014804]
[1723632729491,0.45375318,61223.0,61222.0,0.03014804]
[1723632729899,0.94375318,61223.0,61222.0,0.03014804]
[1723632730192,0.45375318,61223.0,61222.0,0.03014804]
[1723632730397,0.94375318,61223.0,61222.0,0.03014804]
[1723632730992,1.34475318,61223.0,61222.0,0.02414804]
[1723632731917,1.34475318,61223.0,61216.0,0.00024499]
[1723632731918,0.1633,61217.0,61216.0,0.00024499]
[1723632732199,0.8058,61217.0,61216.0,0.00024499]
[1723632732402,1.69588,61217.0,61216.0,0.00024499]
[1723632732804,0.00016584,61216.0,61190.0,0.3608]
[1723632733005,0.081679,61196.0,61190.0,0.3608]
[1723632733307,0.3608,61202.0,61190.0,0.3608]
[1723632733308,0.081675,61199.0,61194.0,0.081681]
[1723632733608,0.3608,61202.0,61195.0,0.081679]
[1723632733910,0.081677,61197.0,61195.0,0.081679]
[1723632734204,0.081678,61196.0,61192.0,0.00024499]
[1723632734607,0.4441,61202.0,61193.0,0.081681]
[1723632734806,0.081681,61194.0,61193.0,0.081681]
[1723632735001,0.4441,61202.0,61192.0,0.00024499]
[1723632735200,0.081682,61193.0,61192.0,0.00024499]
[1723632735706,0.081682,61193.0,61192.0,0.01424499]
[1723632736201,0.36164,61197.0,61192.0,0.01424499]
[1723632736409,0.3608,61197.0,61192.0,0.01424499]
[1723632736804,0.081678,61196.0,61192.0,0.01424499]
[1723632737203,0.081678,61196.0,61193.0,0.081681]
[1723632737408,0.3608,61197.0,61194.0,0.08168]
[1723632737604,0.3608,61197.0,61192.0,0.01424499]
[1723632738001,0.3608,61197.0,61193.0,0.0819]
[1723632738406,0.3608,61197.0,61193.0,0.1645]
[1723632738805,0.3608,61197.0,61196.0,0.081678]
[1723632739820,0.3608,61197.0,61193.0,0.1645]
[1723632739821,0.3608,61202.0,61201.0,0.081671]
[1723632741806,0.3608,61202.0,61201.0,0.165171]
[1723632744008,0.3608,61202.0,61201.0,0.004]
[1723632744316,0.44247,61202.0,61201.0,0.004]
[1723632744814,0.3608,61202.0,61201.0,0.085671]
[1723632745510,0.3608,61202.0,61201.0,0.091671]
[1723632747307,0.3608,61202.0,61201.0,0.01]
[1723632748105,0.44247,61202.0,61201.0,0.01]
[1723632750704,0.72417,61202.0,61201.0,0.01]
[1723632751010,1.69604,61202.0,61201.0,0.01]
[1723632752008,1.61437,61202.0,61201.0,0.01]
[1723632752519,1.21437,61202.0,61201.0,0.01]
[1723632752707,1.29604,61202.0,61201.0,0.01]
[1723632752906,1.61437,61202.0,61201.0,0.01]
[1723632753107,1.21437,61202.0,61201.0,0.01]
[1723632753402,1.61437,61202.0,61201.0,0.01]
[1723632753611,1.69604,61202.0,61201.0,0.01]
[1723632754218,1.61437,61202.0,61201.0,0.01]
[1723632754410,1.29604,61202.0,61201.0,0.01]
[1723632756009,0.72417,61202.0,61201.0,0.01]
[1723632757113,0.80584,61202.0,61201.0,0.01]
[1723632759509,0.72417,61202.0,61201.0,0.01]
[1723632759708,0.80584,61202.0,61201.0,0.01]
[1723632759915,0.72417,61202.0,61201.0,0.01]
[1723632760116,0.80584,61202.0,61201.0,0.01]
[1723632761017,1.21437,61202.0,61201.0,0.01]
[1723632762208,1.29604,61202.0,61201.0,0.01]
[1723632762818,0.72417,61202.0,61201.0,0.01]
[1723632764116,0.3608,61202.0,61201.0,0.15637254]
[1723632764423,0.3608,61202.0,61201.0,0.091671]
[1723632764723,0.3608,61202.0,61201.0,0.29696548]
[1723632764916,0.3608,61202.0,61201.0,0.21611299]
[1723632765312,0.3608,61202.0,61201.0,0.70631299]
[1723632765514,0.00024499,61205.0,61204.0,0.081667]
[1723632765815,0.00024499,61205.0,61204.0,0.20610899]
[1723632766019,0.00024499,61205.0,61204.0,1.09626899]
[1723632766316,0.00024499,61205.0,61204.0,0.69626899]
[1723632766926,0.32019584,61209.0,61208.0,0.081662]
[1723632768524,0.32019584,61209.0,61208.0,0.14649067]
[1723632768816,0.40185684,61209.0,61208.0,0.06482867]
[1723632769013,0.32019584,61209.0,61206.0,0.06482867]
[1723632769210,0.081663,61207.0,61206.0,0.06482867]
[1723632769509,0.081663,61207.0,61204.0,0.003]
[1723632769510,0.081665,61206.0,61205.0,0.06482867]
[1723632769710,0.081666,61205.0,61204.0,0.003]
[1723632770208,0.081666,61205.0,61204.0,0.001]
[1723632771713,0.081666,61205.0,61204.0,0.003]
[1723632773119,0.081666,61205.0,61204.0,0.002]
[1723632774426,0.16318358,61205.0,61204.0,0.002]
[1723632775317,0.16318358,61205.0,61204.0,0.003]
[1723632775717,0.081666,61205.0,61204.0,0.003]
[1723632777828,0.16318358,61205.0,61204.0,0.003]
[1723632778722,0.442466,61205.0,61204.0,0.001]
[1723632779227,0.081668,61204.0,61201.0,0.06482867]
[1723632779612,0.081669,61203.0,61201.0,0.06482867]
[1723632779817,0.081669,61203.0,61202.0,0.06482867]
[1723632780217,0.3608,61205.0,61202.0,0.14649867]
[1723632780427,0.3628,61205.0,61203.0,0.081669]
[1723632781424,0.002,61205.0,61204.0,0.081667]
[1723632783221,0.32019584,61209.0,61208.0,0.081662]
[1723632783417,0.32019584,61209.0,61208.0,0.14653048]
[1723632784920,0.32019584,61209.0,61208.0,0.081662]
[1723632785232,0.32019584,61209.0,61208.0,0.14655202]
[1723632785634,0.32019584,61209.0,61208.0,0.081662]
[1723632786428,0.00024499,61215.0,61214.0,0.081654]
[1723632788233,0.00224499,61215.0,61214.0,0.082654]
[1723632788435,0.36304499,61215.0,61214.0,0.13129141]
[1723632790735,0.36304499,61215.0,61214.0,0.13229141]
[1723632790940,0.36304499,61215.0,61214.0,0.083654]
[1723632791147,0.36304499,61215.0,61214.0,0.13229141]
[1723632791327,0.36304499,61215.0,61214.0,0.083654]
[1723632793141,0.36304499,61215.0,61214.0,0.13229141]
[1723632794231,0.48733755,61215.0,61214.0,0.083654]
[1723632795628,0.38951645,61215.0,61214.0,0.083654]
[1723632796239,0.08374001,61215.0,61214.0,0.083654]
[1723632796539,0.00224499,61215.0,61214.0,0.083654]
[1723632804732,0.00224499,61215.0,61211.0,0.40943741]
[1723632804936,0.081665,61206.0,61205.0,0.00136]
[1723632805239,0.081665,61206.0,61201.0,0.048657]
[1723632805240,0.081669,61203.0,61200.0,0.048657]
[1723632805539,0.3608,61201.0,61200.0,0.048657]
[1723632805730,0.3608,61201.0,61200.0,0.13033]
[1723632805929,0.3608,61201.0,61200.0,0.081673]
[1723632807838,0.3608,61201.0,61200.0,0.27589341]
[1723632808040,0.3608,61201.0,61200.0,0.25944194]
[1723632808246,0.3608,61201.0,61200.0,0.3407597]
[1723632808552,0.3608,61201.0,61200.0,0.3407895]
[1723632808735,0.3608,61201.0,61200.0,0.3477895]
[1723632808932,0.3608,61201.0,61200.0,0.26647174]
[1723632809440,0.3608,61201.0,61200.0,0.40632071]
[1723632810740,0.3608,61201.0,61200.0,0.32500222]
[1723632811241,0.3608,61201.0,61200.0,0.81520222]
[1723632811440,0.3608,61201.0,61200.0,1.21520222]
[1723632811637,0.3608,61201.0,61200.0,0.89652105]
[1723632811838,0.3608,61201.0,61200.0,0.81520222]
[1723632812552,0.3608,61201.0,61200.0,0.91245194]
[1723632812736,0.30360974,61201.0,61200.0,0.81920222]
[1723632813244,0.30360974,61201.0,61200.0,0.97065491]
[1723632813640,0.30360974,61201.0,61200.0,0.48045491]
[1723632813846,0.30360974,61201.0,61200.0,0.97065491]
[1723632814143,0.30360974,61201.0,61200.0,0.81920222]
[1723632814543,0.30360974,61201.0,61200.0,0.97065395]
[1723632817242,0.30360974,61201.0,61200.0,0.81920222]
[1723632817449,0.3608,61206.0,61200.0,0.73752922]
[1723632817653,0.0675,61214.0,61213.0,0.081655]
[1723632817951,0.0675,61214.0,61213.0,0.194555]
[1723632818345,0.1804,61214.0,61213.0,0.081655]
[1723632818952,0.1804,61214.0,61213.0,0.20607005]
[1723632819151,0.1804,61214.0,61213.0,0.081655]
[1723632819353,0.1804,61214.0,61213.0,0.20605957]
[1723632819751,0.1804,61214.0,61213.0,0.20705957]
[1723632820054,0.1804,61214.0,61213.0,0.16380022]
[1723632820248,0.1804,61214.0,61213.0,0.001]
[1723632820443,0.262054,61214.0,61213.0,0.06593157]
[1723632820648,0.265054,61214.0,61213.0,0.001]
[1723632821750,0.346708,61214.0,61213.0,0.001]
[1723632821946,0.516208,61214.0,61213.0,0.001]
[1723632822456,0.516208,61214.0,61213.0,0.002]
[1723632822654,0.517208,61214.0,61213.0,0.002]
[1723632822856,0.52596051,61214.0,61213.0,0.002]